[Event "German Bundesliga 2024-25"]
[Site "Germany"]
[Date "2025.01.11"]
[Round "5.3"]
[White "Ragger, Markus"]
[Black "Christiansen, Johan-Sebastian"]
[Result "1/2-1/2"]
[Annotator "TA"]
[ECO "A54"]
[WhiteElo "2579"]
[BlackElo "2661"]
[PlyCount "106"]
[EventDate "2024.09.27"]
[EventType "team-tourn"]
[EventCountry "GER"]
[SourceTitle "playchess.com"]
[Source "ChessBase"]
[SourceQuality "1"]
[WhiteTeam "SG Solingen"]
[BlackTeam "St. Pauli"]
[TimeControl "40/5400+30:1800+30"]

{[%evp 9,106,80,83,31,22,32,24,30,22,25,50,40,70,9,84,81,137,127,154,163,198,168,181,186,188,180,183,200,173,0,166,120,145,123,122,126,133,135,118,137,200,122,150,121,118,111,118,116,111,125,120,125,117,15,0,0,0,0,0,0,0,0,0,0,0,-58,0,0,93,87,87,87,85,52,64,68,77,-165,-104,-104,-104,-104,0,0,0,0,0,0,0,0,0,0,0,0,0,0,0,0,0]} 1. d4 {[%emt 0:00:03]} Nf6 {[%emt 0:00:22]} 2. c4 {[%emt 0:00:03]} d6 {[%emt 0:00:55]} 3. Nc3 {[%emt 0:00:43]} e5 {[%emt 0:01:16]} 4. Nf3 {[%emt 0:00:03]} e4 {[%emt 0:00:05]} 5. Nd2 {[%emt 0:00:17]} Bf5 {[%emt 0:00:11]} 6. Nb3 {[%emt 0:00:43]} (6. Qb3 $16) 6... c6 {[%emt 0:02:06]} 7. Bg5 {[%emt 0:03:10]} Nbd7 {[%emt 0:10:36]} 8. e3 {[%emt 0:01:26]} Be7 {[%emt 0:01:02]} 9. Be2 {[%emt 0:02:16]} h6 {[%emt 0:02:40]} 10. Bf4 {[%emt 0:04:33]} O-O {[%emt 0:01:51]} 11. d5 {[%emt 0:05:24]} ({White should try} 11. g4 $14 Bh7 12. h4) 11... c5 {[%emt 0:09:30]} (11... cxd5 $11 12. Nxd5 Ne5) 12. Nd2 {[%emt 0:01:18] White is more active.} Re8 {[%emt 0:00:57]} (12... g5 $142) 13. g4 {[%emt 0:03:26]} Bg6 {[%emt 0:06:47]} 14. h4 {[%emt 0:01:42][%cal Bh2h4,Bh4g5][%mdl 32]} Bf8 {[%emt 0:06:06] [#]} 15. g5 $1 {[%emt 0:10:05]} hxg5 {[%emt 0:01:01]} 16. hxg5 {[%emt 0:01:39]} Nh7 {[%emt 0:00:07]} 17. Bh5 {[%emt 0:04:14]} Bf5 {[%emt 0:05:07]} 18. Bg4 {[%emt 0:02:07]} Bg6 {[%emt 0:00:38]} 19. Bh5 {[%emt 0:00:26]} Bf5 $1 {[%emt 0:02:22]} 20. Rg1 {[%emt 0:16:10]} (20. Bg4 Bg6 $16) (20. Qe2 $18) 20... Ne5 $16 {[%emt 0:07:52] Inhibits f3.} 21. Bxe5 {[%emt 0:20:38]} (21. Ncxe4 Nd3+ 22. Kf1 Rxe4 (22... Bxe4 23. Bxf7+ Kxf7 24. Nxe4 $11) 23. Nxe4 Bxe4 $17) (21. Ndxe4 g6 $16) 21... Rxe5 {[%emt 0:00:03]} 22. g6 {[%emt 0:00:08]} fxg6 {[%emt 0:01:01]} 23. Bxg6 {[%emt 0:00:11]} Bxg6 {[%emt 0:07:30]} 24. Rxg6 {[%emt 0:00:01]} Nf6 {[%emt 0:12:52] Wards off Qg4} (24... Qh4 $16) 25. Qe2 {[%emt 0:02:34]} Qe8 {[%emt 0:00:28]} 26. Rg2 {[%emt 0:00:40]} a6 {[%emt 0:00:16][%cal Ba7a6,Ba6a5,Ba5a4,Ba4a3][%mdl 32]} 27. O-O-O {[%emt 0:01:24]} b5 {[%emt 0:02:24][%cal Bb7b5,Bb5b4][%mdl 32]} 28. Rh1 {[%emt 0:00:51]} (28. cxb5 axb5 29. Qxb5 Qxb5 30. Nxb5 Rxa2 $11) 28... b4 {[%emt 0:01:03]} 29. Nd1 {[%emt 0:00:07]} Rf5 {[%emt 0:01:15]} 30. Rgh2 {[%emt 0:05:20]} a5 {[%emt 0:02:43]} 31. Nf1 {[%emt 0:01:55]} (31. f4 $16 exf3 32. Nxf3 (32. Rh8+ Kf7 $16)) 31... a4 $1 $11 {[%emt 0:03:14]} 32. Ng3 {[%emt 0:00:25]} Rg5 $1 {[%emt 0:00:17]} 33. Rh8+ {[%emt 0:04:56]} Kf7 {[%emt 0:00:01]} 34. R8h4 {[%emt 0:00:07]} a3 {[%emt 0:02:13]} 35. b3 {[%emt 0:00:10]} Qe5 {[%emt 0:01:13]} 36. Qc2 {[%emt 0:00:54][%cal Rg3e4]} Re8 {[%emt 0:00:39]} 37. Rf4 {[%emt 0:00:39]} (37. Kd2 $11) 37... Kg8 {[%emt 0:02:32]} ({Black should try} 37... Rg4 $1 $15 38. Rf5 Qa1+ 39. Qb1 Qxb1+ 40. Kxb1 g6) 38. Kd2 {[%emt 0:01:45]} Rg4 {[%emt 0:01:54]} (38... Qe7 $11 {keeps the balance.}) 39. Rxg4 $16 {[%emt 0:03:41]} Nxg4 {[%emt 0:00:01] [#]} 40. Qxe4 $1 {[%emt 0:02:26]} Qxe4 {[%emt 0:05:30]} 41. Nxe4 {[%emt 0:30:06]} Rxe4 {[%emt 0:05:39]} 42. f3 $1 {[%emt 0:00:00][%csl LRe4,LRg4]} Rxc4 $1 {[%emt 0:09:47]} 43. Rh4 $2 {[%emt 0:00:00]} (43. bxc4 $16 {is forced if you want to stay better.} Ne5 44. f4 Nxc4+ 45. Kc2) 43... Be7 {[%emt 0:10:11]} (43... Ne5 $1 $19 {[%cal Re5f3]} 44. Rxc4 Nxc4+ 45. bxc4 Be7) 44. Rxg4 $17 {[%emt 0:00:00]} Rxg4 {[%emt 0:00:05]} 45. fxg4 {[%emt 0:00:00][%mdl 4096] Endgame KB-KN} Bh4 {[%emt 0:00:27] Prevents Nf2} (45... Kf7 $17 {and ...Bh4 should not be overlooked} 46. Kd3 Bg5) 46. Kd3 $11 {[%emt 0:00:00]} Kf7 {[%emt 0:00:21]} 47. e4 $1 {[%emt 0:00:00]} Kf6 {[%emt 0:04:19]} 48. Ne3 {[%emt 0:00:00] Black must now prevent Nf5.} Bg3 {[%emt 0:00:34]} 49. Ke2 {[%emt 0:00:00]} Ke5 {[%emt 0:04:15]} (49... Bf4 $5 50. Nc4 $8 Kg5 $11) 50. Kd3 $1 {[%emt 0:00:00]} Kf6 {[%emt 0:00:22]} (50... g6 $5) 51. Ke2 {[%emt 0:00:00]} Ke5 {[%emt 0:00:01]} 52. Kd3 $1 {[%emt 0:00:00]} Kf6 {[%emt 0:01:08]} (52... Bf4 $5 53. Nc4+ $8 Kf6 $11) 53. Ke2 {[%emt 0:00:00]} Ke5 {[%emt 0:00:24]} (53... Bf4 $5 54. Nc4 $8 g6 $11) 1/2-1/2

[Event "German Bundesliga 2024-25"]
[Site "Germany"]
[Date "2025.01.11"]
[Round "5.3"]
[White "Buckels, Valentin"]
[Black "Svane, Rasmus"]
[Result "1/2-1/2"]
[Annotator "TA"]
[ECO "A20"]
[WhiteElo "2448"]
[BlackElo "2628"]
[PlyCount "52"]
[EventDate "2024.09.27"]
[EventType "team-tourn"]
[EventCountry "GER"]
[SourceTitle "playchess.com"]
[Source "ChessBase"]
[SourceQuality "1"]
[WhiteTeam "Muelheim Nord"]
[BlackTeam "Hamburg"]
[TimeControl "40/5400+30:1800+30"]

{[%evp 9,52,0,0,-1,-9,0,0,-2,12,-14,-8,-4,25,16,11,17,31,11,30,0,0,0,0,0,0,-7,-6,-14,9,14,11,4,11,0,7,7,0,0,0,0,0,0,7,7,18]} 1. c4 {[%emt 1:31:00]} e5 2. g3 {[%emt 0:00:30]} Nf6 3. Bg2 {[%emt 0:00:30]} h6 4. Nc3 {[%emt 0:00:30]} Bb4 5. Qc2 {[%emt 0:00:30]} O-O 6. Nf3 {[%emt 0:00:30]} Re8 7. O-O {[%emt 0:00:30]} d6 8. d3 {[%emt 0:00:30]} Nc6 9. a3 {[%emt 0:00:30]} Bxc3 10. Qxc3 {[%emt 0:00:30]} d5 11. cxd5 {[%emt 0:00:30]} Nxd5 12. Qc5 {[%emt 0:00:30]} Nf6 13. Be3 {[%emt 0:00:30]} e4 14. Nd4 {[%emt 0:00:30]} Nxd4 15. Bxd4 {[%emt 0:00:30]} (15. Qxd4 exd3 16. Qxd3 (16. exd3 c6 $11) 16... Qxd3 17. exd3 a5) 15... exd3 16. exd3 {[%emt 0:00:30]} c6 17. b4 {[%emt 0:00:30]} a6 18. a4 {[%emt 0:00:30]} Be6 19. b5 {[%emt 0:00:30]} axb5 20. axb5 {[%emt 0:00:30]} Rxa1 21. Bxa1 {[%emt 0:00:30] A strong pair of Bishops.} (21. Rxa1 cxb5 22. Bxb7 Bd5 23. Bxd5 Qxd5 24. Rc1) 21... Qxd3 22. Bxf6 {[%emt 0:00:30]} (22. bxc6 {feels hotter.} bxc6 23. Qxc6 Bd5 24. Qc3) 22... gxf6 23. bxc6 {[%emt 0:00:30]} bxc6 24. Qxc6 {[%emt 0:00:30]} Rc8 25. Qf3 {[%emt 0:00:30]} Qxf3 26. Bxf3 {[%emt 0:00:30]} Kg7 1/2-1/2

[Event "German Bundesliga 2024-25"]
[Site "Germany"]
[Date "2025.01.11"]
[Round "5.4"]
[White "Bjerre, Jonas Buhl"]
[Black "Andersen, Mads"]
[Result "1-0"]
[Annotator "TA"]
[ECO "C84"]
[WhiteElo "2654"]
[BlackElo "2595"]
[PlyCount "107"]
[EventDate "2024.09.27"]
[EventType "team-tourn"]
[EventCountry "GER"]
[SourceTitle "playchess.com"]
[Source "ChessBase"]
[SourceQuality "1"]
[WhiteTeam "St. Pauli"]
[BlackTeam "SG Solingen"]
[TimeControl "40/5400+30:1800+30"]

{[%evp 32,107,30,28,22,-3,-12,-16,63,52,55,58,47,62,52,59,50,61,45,51,60,48,68,83,62,44,53,57,69,75,60,59,49,69,127,143,183,175,176,180,197,144,143,140,290,210,209,201,205,159,314,194,198,192,179,186,308,312,304,304,299,302,285,290,352,318,421,409,472,470,472,472,467,467,408,424,393,405]} 1. e4 {[%emt 0:00:11]} e5 {[%emt 0:00:12]} 2. Nf3 {[%emt 0:00:09]} Nc6 {[%emt 0:00:06]} 3. Bb5 {[%emt 0:00:15]} a6 {[%emt 0:00:11]} 4. Ba4 {[%emt 0:00:08]} Nf6 {[%emt 0:00:10]} 5. O-O {[%emt 0:00:52]} Be7 {[%emt 0:00:16]} 6. d3 {[%emt 0:00:41]} b5 {[%emt 0:00:17]} 7. Bb3 {[%emt 0:00:06]} d6 {[%emt 0:00:16]} 8. c3 {[%emt 0:01:03]} O-O {[%emt 0:00:25]} 9. h3 {[%emt 0:00:12]} Bb7 {[%emt 0:01:43]} 10. Bc2 {[%emt 0:01:19]} Re8 {[%emt 0:03:06]} 11. Re1 {[%emt 0:00:08]} h6 {[%emt 0:06:08]} 12. Nbd2 {[%emt 0:05:29]} Bf8 {[%emt 0:00:38]} 13. d4 {[%emt 0:03:43]} Nb8 {[%emt 0:07:49]} 14. b3 {[%emt 0:01:53]} Nbd7 {[%emt 0:04:10]} 15. Bb2 {[%emt 0:01:17]} g6 {[%emt 0:05:13]} 16. a4 {[%emt 0:02:13]} c6 {[%emt 0:07:20]} 17. Qb1 {[%emt 0:22:30]} Qc7 {[%emt 0:03:08]} 18. c4 {[%emt 0:04:17]} exd4 {[%emt 0:06:38]} 19. Bxd4 {[%emt 0:01:38]} Bg7 {[%emt 0:04:26]} ({Black should try} 19... bxc4 $11 20. bxc4 Bg7) 20. axb5 {[%emt 0:02:41]} axb5 {[%emt 0:00:30]} 21. cxb5 {[%emt 0:01:26]} cxb5 {[%emt 0:01:31]} 22. Bd3 {[%emt 0:03:44]} Bc6 {[%emt 0:03:12]} 23. Rxa8 {[%emt 0:07:06]} Rxa8 {[%emt 0:00:03]} 24. Rc1 {[%emt 0:00:54]} Qb7 $1 {[%emt 0:03:01]} 25. b4 {[%emt 0:05:28]} Ra6 {[%emt 0:10:46]} 26. Qb2 {[%emt 0:03:03]} Nh5 {[%emt 0:08:39]} 27. Bxg7 {[%emt 0:04:25]} Nxg7 {[%emt 0:00:40]} 28. Qd4 {[%emt 0:02:27]} Qb8 {[%emt 0:03:37]} 29. Qe3 {[%emt 0:04:56]} Kh7 {[%emt 0:03:09]} 30. Qf4 {[%emt 0:03:56]} Qf8 {[%emt 0:01:02]} 31. Nd4 {[%emt 0:01:33]} Ne5 {[%emt 0:02:00]} 32. Bf1 {[%emt 0:00:45]} (32. Bxb5 $2 Bxb5 33. N2f3 (33. Nxb5 $2 Nd3 $19) 33... Qe8 $19) 32... Bd7 {[%emt 0:02:06]} (32... Qe7 $14) 33. Qe3 $16 {[%emt 0:01:15]} (33. Nxb5 $6 Bxb5 34. Bxb5 Rb6 $11) 33... Qa8 {[%emt 0:05:36]} 34. Nxb5 {[%emt 0:02:01]} (34. Bxb5 Ra3 35. Rc3 Ra1+ 36. Bf1 Qa7) 34... Bxb5 {[%emt 0:00:47]} 35. Bxb5 {[%emt 0:00:06]} Ra1 {[%emt 0:00:04]} 36. Rxa1 {[%emt 0:01:20]} (36. Rf1 $18) 36... Qxa1+ $16 {[%emt 0:00:03]} 37. Bf1 {[%emt 0:00:21]} g5 {[%emt 0:04:38]} (37... Qb2 $16) 38. b5 {[%emt 0:03:57]} Ne6 {[%emt 0:00:27]} 39. b6 {[%emt 0:03:52]} Qb2 {[%emt 0:02:39]} 40. Nb3 {[%emt 0:02:47]} Nd7 $2 {[%emt 0:02:04]} (40... Nd8 $16 41. Be2 Qc2) 41. Bc4 {[%emt 0:07:07]} Nec5 {[%emt 0:04:58]} 42. Bxf7 {[%emt 0:05:02]} Nxb6 {[%emt 0:05:46]} 43. Nxc5 {[%emt 0:07:44]} Qa1+ {[%emt 0:00:10]} (43... dxc5 {might work better.} 44. g3 (44. Qxc5 Qb1+ 45. Kh2 Qxe4 $18) 44... Kg7) 44. Kh2 $18 {[%emt 0:00:04]} Qe5+ {[%emt 0:00:04]} 45. g3 {[%emt 0:01:26]} dxc5 {[%emt 0:00:55]} 46. Ba2 {[%emt 0:02:58]} Nd7 {[%emt 0:05:51]} 47. Qb3 {[%emt 0:01:13]} Qe8 {[%emt 0:00:51]} 48. Qb7 {[%emt 0:03:28]} Kg6 {[%emt 0:03:29]} 49. Qc7 {[%emt 0:02:03]} Qf8 {[%emt 0:07:26]} 50. Kg2 {[%emt 0:01:43]} ({Worse is} 50. Qxd7 Qxf2+ 51. Kh1 Qf1+ 52. Kh2 Qf2+ 53. Kh1 Qf1+ 54. Kh2 Qf2+ $11) 50... Qe8 {[%emt 0:01:37]} 51. Qd6+ {[%emt 0:01:11]} Kg7 {[%emt 0:00:01]} 52. Be6 {[%emt 0:00:36]} Nf6 {[%emt 0:00:50]} 53. Qc7+ {[%emt 0:02:22]} Kh8 {[%emt 0:00:16]} 54. Bf5 {[%emt 0:00:16]} 1-0

[Event "German Bundesliga 2024-25"]
[Site "Germany"]
[Date "2025.01.11"]
[Round "5.4"]
[White "Mendonca, Leon Luke"]
[Black "Zelbel, Patrick"]
[Result "1-0"]
[Annotator "TA"]
[ECO "E94"]
[WhiteElo "2639"]
[BlackElo "2493"]
[PlyCount "57"]
[EventDate "2024.09.27"]
[EventType "team-tourn"]
[EventCountry "GER"]
[SourceTitle "playchess.com"]
[Source "ChessBase"]
[SourceQuality "1"]
[WhiteTeam "Hamburg"]
[BlackTeam "Muelheim Nord"]
[TimeControl "40/5400+30:1800+30"]

{[%evp 12,57,37,22,43,38,42,31,45,38,51,43,40,47,40,39,46,35,52,51,58,33,71,74,77,71,81,68,69,59,68,37,118,129,120,109,122,73,152,156,117,78,125,79,77,39,628,610]} 1. d4 {[%emt 2:21:21]} Nf6 {[%emt 0:00:05]} 2. c4 {[%emt 0:00:31]} g6 {[%emt 0:01:14]} 3. Nc3 {[%emt 0:00:10]} Bg7 {[%emt 0:00:06]} 4. e4 {[%emt 0:00:09]} d6 {[%emt 0:00:11]} 5. Be2 {[%emt 0:00:23]} O-O {[%emt 0:00:42]} 6. Nf3 {[%emt 0:00:05]} e5 {[%emt 0:01:04]} 7. O-O {[%emt 0:00:08]} h6 {[%emt 0:01:05]} 8. a3 {[%emt 0:03:46]} Nh5 {[%emt 0:00:50]} 9. Re1 {[%emt 0:03:55]} Nf4 {[%emt 0:00:40]} 10. Bf1 {[%emt 0:02:22]} exd4 {[%emt 0:01:18]} 11. Nxd4 {[%emt 0:01:50]} Ne6 {[%emt 0:00:48]} 12. Be3 {[%emt 0:05:30]} Nc6 {[%emt 0:01:57]} 13. Nxe6 {[%emt 0:02:10]} Bxe6 {[%emt 0:00:34]} 14. Rc1 {[%emt 0:03:48]} a6 {[%emt 0:08:35]} 15. b4 {[%emt 0:09:02]} Re8 {[%emt 0:24:22]} 16. Nd5 {[%emt 0:02:12]} Rc8 {[%emt 0:13:40]} 17. Qd2 {[%emt 0:02:24] White is more active.} Kh7 {[%emt 0:05:25]} 18. f4 {[%emt 0:17:44]} Qd7 {[%emt 0:14:46]} 19. Bf2 {[%emt 0:02:53]} f5 {[%emt 0:10:19]} 20. Bd3 {[%emt 0:01:55]} Nd4 {[%emt 0:02:18]} 21. Rcd1 {[%emt 0:04:58]} Bxd5 {[%emt 0:05:34]} ({Black should try} 21... Qf7 $14) 22. cxd5 $16 {[%emt 0:00:33]} c5 {[%emt 0:02:24]} 23. dxc6 {[%emt 0:01:06]} Rxc6 {[%emt 0:00:25]} 24. exf5 {[%emt 0:09:22]} (24. Kf1) 24... Nxf5 {[%emt 0:00:42]} (24... Rxe1+ $142 25. Qxe1 (25. Rxe1 Nxf5 26. b5 Rc8 $14) 25... Nxf5) 25. Rxe8 Qxe8 26. Bb1 {[%emt 0:00:07]} Qe6 {[%emt 0:01:04]} (26... h5 $142) 27. h3 {[%emt 0:03:51]} ({Better is} 27. g4 Ne7 28. f5) 27... h5 {[%emt 0:01:11]} 28. Re1 {[%emt 0:00:42]} Bc3 $2 {[%emt 0:02:03][%mdl 8192]} (28... Qc4 $14 29. Bxf5 gxf5) 29. Qxc3 {[%emt 0:00:36]} 1-0

[Event "German Bundesliga 2024-25"]
[Site "Germany"]
[Date "2025.01.11"]
[Round "5.4"]
[White "Rakotomaharo, Fy Antenaina"]
[Black "Dragnev, Valentin"]
[Result "1/2-1/2"]
[Annotator "TA"]
[ECO "C07"]
[WhiteElo "2429"]
[BlackElo "2566"]
[PlyCount "178"]
[EventDate "2024.09.27"]
[EventType "team-tourn"]
[EventCountry "GER"]
[SourceTitle "playchess.com"]
[Source "ChessBase"]
[SourceQuality "1"]
[WhiteTeam "Bad Mergentheim"]
[BlackTeam "Bayern Muenchen"]
[TimeControl "40/5400+30:1800+30"]

{[%evp 118,178,0,-227,0,0,0,-225,-225,-218,-217,-217,-110,-310,-309,-29958,0,-1086,-1079,-1091,-1043,-2264,-988,-840,-872,-615,0,-570,0,-645,-399,-367,-44,-52,-35,-59,-59,-59,0,-74,-33,-52,-52,-52,0,0,0,-59,16,16,16,16,16,16,16,8,16,16,16,0,0,0,16]} 1. e4 {[%emt 0:00:08]} e6 {[%emt 0:00:18]} 2. d4 {[%emt 0:02:52]} d5 {[%emt 0:00:23]} 3. Nd2 {[%emt 0:00:06]} c5 {[%emt 0:00:22]} 4. Ngf3 {[%emt 0:00:07]} cxd4 {[%emt 0:00:24]} 5. Nxd4 {[%emt 0:00:34]} Nc6 {[%emt 0:01:13]} 6. Bb5 {[%emt 0:00:15]} Bd7 {[%emt 0:00:17]} 7. Nxc6 {[%emt 0:00:16]} bxc6 {[%emt 0:00:02]} 8. Bd3 {[%emt 0:00:07]} Bd6 {[%emt 0:01:20]} 9. Qe2 {[%emt 0:01:21]} Qc7 {[%emt 0:00:10]} 10. Nf3 {[%emt 0:02:20]} dxe4 {[%emt 0:00:18]} 11. Qxe4 {[%emt 0:07:58]} Nf6 {[%emt 0:00:23]} 12. Qh4 {[%emt 0:00:43]} c5 {[%emt 0:00:35]} 13. Bg5 {[%emt 0:05:41]} Ke7 {[%emt 0:09:54]} 14. Nd2 {[%emt 0:18:15]} Be5 {[%emt 0:11:42]} 15. Nc4 {[%emt 0:04:12]} h6 {[%emt 0:01:14]} 16. Nxe5 {[%emt 0:00:55]} Qxe5+ {[%emt 0:00:42]} 17. Be3 {[%emt 0:00:05]} Rab8 {[%emt 0:06:43]} 18. O-O {[%emt 0:08:14]} Rb4 {[%emt 0:24:49]} 19. c4 {[%emt 0:23:42]} Rxb2 {[%emt 0:02:35]} 20. Rfe1 {[%emt 0:00:53]} Ba4 {[%emt 0:18:20]} 21. Bf1 {[%emt 0:02:35]} Qd6 {[%emt 0:05:44]} 22. Rac1 {[%emt 0:11:19]} Rhb8 {[%emt 0:04:07]} 23. g3 {[%emt 0:02:42]} Rxa2 {[%emt 0:01:54]} 24. Rc3 {[%emt 0:00:57]} Qe5 {[%emt 0:04:03]} 25. Rd3 {[%emt 0:01:15]} Kf8 {[%emt 0:00:53]} 26. f4 {[%emt 0:04:51]} Qf5 {[%emt 0:01:53]} 27. Bf2 {[%emt 0:00:57]} Kg8 {[%emt 0:01:57]} 28. Re5 {[%emt 0:00:31]} Qg6 {[%emt 0:00:24]} 29. f5 {[%emt 0:00:33]} exf5 {[%emt 0:00:21]} 30. Bxc5 {[%emt 0:00:28]} Ra1 {[%emt 0:01:11]} 31. Bd4 {[%emt 0:00:35]} Rc1 {[%emt 0:00:13]} 32. Be3 {[%emt 0:00:27]} Rxf1+ {[%emt 0:00:39]} 33. Kxf1 {[%emt 0:00:25]} f4 {[%emt 0:00:06]} 34. Rd2 {[%emt 0:00:39]} Rb1+ {[%emt 0:01:11]} 35. Ke2 {[%emt 0:00:21]} fxe3 {[%emt 0:00:26]} 36. Rxe3 {[%emt 0:00:18]} Qf5 {[%emt 0:00:40]} 37. Qf4 {[%emt 0:00:48]} Qh5+ {[%emt 0:00:31]} 38. g4 {[%emt 0:00:33]} Qc5 {[%emt 0:01:00]} 39. h4 {[%emt 0:00:31]} Qc6 {[%emt 0:00:29]} 40. Rd8+ {[%emt 0:00:28]} Kh7 {[%emt 0:00:28]} 41. Qf5+ {[%emt 0:30:28]} g6 {[%emt 0:30:18]} 42. Qxb1 {[%emt 0:00:00]} Qxc4+ {[%emt 0:00:00]} 43. Kd2 {[%emt 0:00:00]} Qxg4 {[%emt 0:00:00]} 44. Re7 {[%emt 0:00:00]} Qf4+ {[%emt 0:00:00]} 45. Kc3 {[%emt 0:00:00]} Ng8 {[%emt 0:00:00]} 46. Rb7 {[%emt 0:00:00]} Bc6 {[%emt 0:00:00]} 47. Rbb8 {[%emt 0:00:00]} Nf6 {[%emt 0:00:00]} 48. Qe1 {[%emt 0:01:30]} Be4 {[%emt 0:03:30]} 49. Kb2 {[%emt 0:01:59]} Qe5+ {[%emt 0:00:38]} 50. Ka3 {[%emt 0:00:18]} Qc5+ {[%emt 0:00:16]} 51. Kb2 {[%emt 0:00:50]} Qc2+ {[%emt 0:00:19]} 52. Ka3 {[%emt 0:00:05]} Bd5 {[%emt 0:00:43]} 53. Rh8+ {[%emt 0:01:20]} Kg7 {[%emt 0:00:01]} 54. Qe5 {[%emt 0:00:31]} Qa2+ {[%emt 0:01:10]} 55. Kb4 {[%emt 0:00:06]} Qc4+ {[%emt 0:00:05]} 56. Ka3 {[%emt 0:00:05]} Qa2+ {[%emt 0:00:37]} 57. Kb4 {[%emt 0:00:04]} a5+ {[%emt 0:00:55]} 58. Kb5 {[%emt 0:01:38]} Qc4+ {[%emt 0:00:30]} 59. Kb6 {[%emt 0:00:05]} Qc6+ {[%emt 0:00:32]} 60. Ka7 $2 {[%emt 0:00:16]} (60. Kxa5 $11 {and White stays safe.} Qc5+ 61. Rb5 Qa3+ 62. Kb6) 60... Qd7+ {[%emt 0:00:21]} 61. Kb6 {[%emt 0:00:20]} (61. Ka6 $5 Qc6+ $8 62. Ka7 Qd7+ (62... Qc5+ 63. Rb6 $19) 63. Kb6 Qc6+ 64. Kxa5 (64. Ka7 $2 Qc5+ 65. Rb6 Kxh8 $17) 64... Qc5+ 65. Rb5 Qa3+ 66. Kb6 $11) 61... Qc6+ {[%emt 0:00:23]} 62. Ka7 {[%emt 0:00:06]} (62. Kxa5 $5 Qc5+ $8 63. Rb5 Qa3+ 64. Kb6 $11) 62... Qc5+ {[%emt 0:00:43]} 63. Rb6 {[%emt 0:00:52]} Kxh8 {[%emt 0:00:03]} 64. Qxf6+ {[%emt 0:00:05]} Kg8 {[%emt 0:00:55]} (64... Kh7 $1 $19 {And now ...Qc8 would win.} 65. Qd6 Qxd6 66. Rxd6 Bb3) 65. h5 $2 {[%emt 0:00:42]} (65. Ka6 $17 Bc4+ 66. Kb7) 65... gxh5 $19 {[%emt 0:00:26]} 66. Qxh6 $2 {[%emt 0:00:17] [#]} (66. Qf4 $19) 66... Be6 $2 {[%emt 0:00:36]} (66... Qe7+ $1 {mates} 67. Ka6 Bc4+ 68. Rb5 Qc5 (68... Bxb5+ $2 69. Kxb5 Qe5+ 70. Ka4 $19) 69. Kb7 Qxb5+ (69... Bxb5 $2 70. Qf6 $19) 70. Kc7 Qe5+ 71. Kb6 Qe6+ 72. Qxe6 Bxe6 (72... fxe6 {leads to mate.} 73. Kxa5 h4 74. Kb6 h3 75. Kc6 h2 76. Kc5 Bd5 77. Kd4 h1=Q 78. Kd3 Qh3+ 79. Kd2 Qf3 80. Kc2 Qe3 81. Kb2 Qd2+ 82. Kb1 Kh7 83. Ka1 Qc1#) 73. Kb5 f5 74. Kc5 h4 75. Kd6 Kf7 76. Kc7 h3 77. Kb6 h2 (77... a4 78. Kc5 a3 79. Kd4 a2 80. Ke3 a1=Q 81. Kf4 h2 82. Kg3 h1=Q 83. Kf4 Qac1+ 84. Kg3 Qe3#) 78. Kxa5 h1=Q (78... h1=R 79. Kb4 f4 80. Kc5 f3 81. Kc6 f2 82. Kc5 f1=Q 83. Kd4 Qf2+ 84. Kc3 Rh3+ 85. Kb4 Qb6+ 86. Ka4 Bd7#) 79. Kb5 Qd5+ 80. Kb4 Qc6 81. Ka5 Qc5+ 82. Ka4 Qb6 83. Ka3 Qb3#) 67. Qf6 $2 {[%emt 0:01:05][%mdl 8192]} (67. Ka8 $11) 67... a4 $19 {[%emt 0:00:29]} 68. Kb7 {[%emt 0:01:20]} a3 {[%emt 0:00:30]} 69. Rc6 {[%emt 0:00:28]} Qb5+ {[%emt 0:00:18]} (69... Qd5 $142 70. Kb6 a2) 70. Kc7 $19 {[%emt 0:00:15]} Qa5+ {[%emt 0:00:21]} 71. Kb8 {[%emt 0:00:43]} Qb5+ {[%emt 0:00:39]} 72. Kc7 {[%emt 0:00:05]} Qa5+ {[%emt 0:00:02]} 73. Kb8 $1 {[%emt 0:00:10]} Qb4+ {[%emt 0:01:10]} 74. Kc7 {[%emt 0:00:16] [#]} Qg4 $2 {[%emt 0:00:34]} (74... Qf8 $1 $19 75. Rd6 Qg7) 75. Rc5 $1 $15 {[%emt 0:01:23]} Qg3+ {[%emt 0:00:22]} 76. Kb7 {[%emt 0:00:31]} Qb3+ {[%emt 0:00:31]} 77. Kc7 $1 {[%emt 0:00:33]} Qg3+ {[%emt 0:00:21]} 78. Kb7 {[%emt 0:00:33]} Qg2+ {[%emt 0:00:43]} 79. Kc7 {[%emt 0:00:23]} Qh2+ $1 {[%emt 0:00:25]} 80. Kc6 {[%emt 0:00:07]} Qg2+ {[%emt 0:00:25]} (80... Qh1+ $1 $15 81. Kb6 Qb1+ 82. Kc7 Qd1 83. Qg5+ Kh7 84. Qxh5+ Qxh5 85. Rxh5+ Kg7 86. Rg5+ Kh6) 81. Kc7 $1 $11 {[%emt 0:00:10]} Qh2+ {[%emt 0:00:09]} ({Black should try} 81... Qd2 $11 82. Rxh5 Qd7+ 83. Kb6 Qd6+ 84. Ka7 Qc7+ 85. Ka8 Qc6+ 86. Ka7 Qc7+) 82. Kc6 $1 $15 {[%emt 0:00:14]} Kh7 {[%emt 0:00:59]} (82... Qh1+ $1 $15 83. Kc7 Qd1 84. Qg5+ Kf8) 83. Rg5 $11 {[%emt 0:01:11]} Qc2+ {[%emt 0:00:03]} 84. Kb6 {[%emt 0:00:56]} Qb2+ {[%emt 0:00:20]} 85. Qxb2 {[%emt 0:00:06]} axb2 {[%emt 0:00:30]} 86. Rxh5+ {[%emt 0:00:30]} Kg6 {[%emt 0:00:30]} 87. Rb5 {[%emt 0:00:30]} Kh7 {[%emt 0:00:13]} 88. Rh5+ {[%emt 0:00:06]} Kg6 {[%emt 0:00:05]} 89. Rb5 {[%emt 0:00:02]} Bf5 {[%emt 0:00:56]} 1/2-1/2